Cogmind - Beta 15 @@@ ROGUE MODE // 2025.09.02 @ 23:53:05 Player: SpeltIncorrectyl Result: Smashed by cave-in Performance ------------- Evolutions (0) 0 Regions Visited (3) 600 Robots Destroyed (21) 105 Value Destroyed (667) 667 Prototype IDs (0) 0 Alien Tech Used (0) 0 Bonus (-159) -159 TOTAL SCORE: 1213 Bonus ------- Follower Combat Kills 14 Friendly Fire -173 Cogmind --------- Core Integrity 0/250 Matter 277/300 Energy 200/200 System Corruption 20% Temperature Cool (0) Movement Rolling (120) Ox1 Location -10/Subcaves Parts ------- > --- POWER (1) -------- Subdweller Power Source > --- PROPULSION (2) --- Subdweller Monowheel > --- UTILITY (2) ------ Scrap Shield > --- WEAPON (2) ------- Grenade Launcher > --- INVENTORY (5) ---- Subdweller Power Source Battle Rifle Subdweller Machine Gun Peak State ------------ > --- POWER ------------ Light Angular Momentum Engine > --- PROPULSION ------- Compact Wheel Compact Wheel > --- UTILITY ---------- Small Storage Unit Targeting Computer > --- WEAPON ----------- Assault Rifle Battle Rifle > --- INVENTORY -------- Subdweller Power Source Flight Unit Scrap Shield Sensor Drone Bay Grenade Launcher Grenade Launcher [Rating: 13] Favorites ----------- Power Light Angular Momentum Engine Engine Light Angular Momentum Engine Propulsion Compact Wheel Wheel Compact Wheel Utility Small Storage Unit Storage Small Storage Unit Processor Targeting Computer Protection Scrap Shield Weapon Grenade Launcher Ballistic Gun Battle Rifle Launcher Grenade Launcher Build | -11 -10 -10 -10 ------- Run | Yrd Mat Min Sub Slots Evolved . | . . . . Power . | . . . . Propulsion . | . . . . Utility . | . . . . Weapon . | . . . . Parts Attached 21 | 5 6 1 9 Power 4 | 1 1 1 1 Engine 4 | 1 1 1 1 Core . | . . . . Reactor . | . . . . Propulsion 6 | 1 1 . 4 Treads . | . . . . Leg . | . . . . Wheel 6 | 1 1 . 4 Hover . | . . . . Flight . | . . . . Utility 3 | 1 1 . 1 Device . | . . . . Storage 1 | 1 . . . Processor 1 | . 1 . . Hackware . | . . . . Protection 1 | . . . 1 Artifact . | . . . . Weapon 8 | 2 3 . 3 Energy Gun . | . . . . Energy Cannon . | . . . . Ballistic Gun 5 | 2 1 . 2 Ballistic Cannon . | . . . . Launcher 3 | . 2 . 1 Special Weapon . | . . . . Impact Weapon . | . . . . Slashing Weapon . | . . . . Piercing Weapon . | . . . . Special Melee Weapon . | . . . . Unidentified Prototypes . | . . . . Parts Lost 11 | . 2 . 9 Power 2 | . 1 . 1 Propulsion 4 | . . . 4 Utility 1 | . . . 1 Weapon 4 | . 1 . 3 Highest Loss Streak 3 | . 1 . 3 To Critical Strikes 1 | . . . 1 Average Backups 5 | 2 3 6 5 Power . | . . . . Propulsion . | . . . 1 Utility 1 | . . 1 1 Weapon 2 | . 2 4 1 Tool/Special . | . . . . Unused Backups 9 | . . 3 6 Power 1 | . . . 1 Propulsion 4 | . . 3 1 Utility 2 | . . . 2 Weapon 2 | . . . 2 Tool/Special . | . . . . Average Slot Usage (%) 88 | . 83 99 85 Engine 12 | . 13 14 12 Wheel 22 | . 21 28 20 Storage 13 | . 14 14 12 Processor 9 | . 6 14 9 Ballistic Gun 16 | . 26 6 17 Launcher 11 | . . 21 10 Peak Build Rating 13 | 5 7 12 13 Average Rating 10 | 3 5 10 11 On Entrance 6 | . 5 7 12 Naked Turns . | . . . . Heaviest Build 28 | 14 14 20 28 Greatest Support 32 | 16 32 32 32 Greatest Overweight (x) 5 | . . . 5 Average Overweight (x) . | . . . . Largest Inventory Capacity 8 | 8 8 8 8 Average Capacity 7 | 7 8 8 7 Most Carried 8 | 5 7 8 8 Average Carried 6 | 1 3 6 7 Final Capacity 8 | 8 8 8 5 Final Carried 8 | 2 5 8 3 Class Distribution -------------------- 94% | Mutant 5% | Subdweller-Mutant Dominant Class ---------------- Mutant | -10/Materials Mutant | -10/Mines Mutant | -10/Subcaves Resources | -11 -10 -10 -10 ----------- Run | Yrd Mat Min Sub Matter Collected 947 | 236 263 70 378 Remotely . | . . . . Salvage Created 682 | . 390 74 218 Parts 46 | . 26 6 14 Haulers Intercepted . | . . . . Recyclers Shooed . | . . . . Parts Field Recycled . | . . . . Retrieved Matter . | . . . . Parts Self-Destructed 12 | . . . 12 Prevented . | . . . . Kills | -11 -10 -10 -10 ------- Run | Yrd Mat Min Sub Combat Hostiles Destroyed 20 | . 11 3 6 Guns 14 | . 10 . 4 AOE 6 | . 1 3 2 Classes Destroyed 6 | . 3 . 3 Watcher 1 | . 1 . . Swarmer 4 | . 3 1 . Grunt 10 | . 8 2 . Sentry 1 | . . . 1 Artisan 1 | . . . 1 Subdweller 5 | . . . 5 Best Kill Streak 7 | . 7 2 2 Combat Bots Only 6 | . 6 2 2 Max Kills in Single Turn 2 | . 2 2 1 Gunslinging . | . . . . Exploded 2 | . 1 2 1 Melee . | . . . . Uniques/NPCs Destroyed . | . . . . Combat | -11 -10 -10 -10 -------- Run | Yrd Mat Min Sub Hostile Shots Fired 84 | . 60 3 21 Missed 23 | . 16 . 7 Hits 61 | . 44 3 14 Projectile 61 | . 44 3 14 Critical Strikes 2 | . . 1 1 Damage Taken 1421 | . 525 50 846 Core 313 | . 145 22 146 Absorbed by Shields . | . . . . Core Remaining (%) 100 | 100 . . . Volleys Fired 61 | . 28 2 31 Largest 2 | . 2 2 2 Hottest 60 | . 60 60 60 Shots Fired 110 | . 55 4 51 Gun 86 | . 53 . 33 Cannon . | . . . . Launcher 24 | . 2 4 18 Special . | . . . . Kinetic 86 | . 53 . 33 Thermal . | . . . . Explosive 24 | . 2 4 18 Electromagnetic . | . . . . Robot Hit Streak 16 | . 16 . 8 Robot Miss Streak 5 | . 5 1 2 Penetration Max . | . . . . Secondary Targets . | . . . . Shots Hit Robots 65 | . 40 . 25 Core Hits 39 | . 20 5 14 Critical Kills . | . . . . Critical Parts Destroyed . | . . . . Critical Strikes . | . . . . Melee Attacks . | . . . . Impact . | . . . . Slashing . | . . . . Piercing . | . . . . Sneak Attacks . | . . . . Combat Hostiles . | . . . . Follow-up Attacks . | . . . . Damage Inflicted 1554 | . 595 135 824 Guns 810 | . 506 . 304 Cannons . | . . . . Explosions 744 | . 89 135 520 Melee . | . . . . Ramming . | . . . . Kinetic 810 | . 506 . 304 Thermal . | . . . . Explosive 744 | . 89 135 520 Electromagnetic . | . . . . Impact . | . . . . Slashing . | . . . . Piercing . | . . . . Highest Corruption 12 | . . . 12 Average Corruption 12 | . . . 12 Corruption Purged . | . . . . Corruption Blocked . | . . . . Effects 15 | . . . 15 Message Errors 5 | . . . 5 Matter Fused 3 | . . . 3 Heat Flow Errors 3 | . . . 3 Energy Discharges 2 | . . . 2 Data Loss (major) 1 | . . . 1 Weapon Failures 1 | . . . 1 Overload Shots . | . . . . Overflow Damage 7 | . . . 7 Projectiles . | . . . . Explosions 7 | . . . 7 Melee . | . . . . Knockbacks . | . . . . Impact . | . . . . Kinetic . | . . . . Secondary . | . . . . Self-Inflicted Damage 101 | . 41 16 44 Shots 6 | . 2 1 3 Rammed . | . . . . Targets Rammed . | . . . . Kicked . | . . . . Crushed . | . . . . Highest Temperature 242 | . 18 21 242 Average Temperature 49 | . 6 15 101 Received Heat Transfer 306 | . 240 33 33 Siege Activations . | . . . . Martial Activations . | . . . . Shielding Activations . | . . . . Robots Disrupted . | . . . . Combat Hostiles . | . . . . Robots Corrupted . | . . . . Combat Hostiles . | . . . . Parts Fried . | . . . . Impact Corruptions . | . . . . Robots Melted . | . . . . Combat Hostiles . | . . . . Parts Melted . | . . . . Heat Transferred . | . . . . Parts Sabotaged . | . . . . Parts Stolen . | . . . . Parts Stripped . | . . . . Power Chain Reactions . | . . . . Alert | -11 -10 -10 -10 ------- Run | Yrd Mat Min Sub Maximum Alert Level . | . . . . Low Security (%) 100 | 100 100 100 . Level 1 . | . . . . Level 2 . | . . . . Level 3 . | . . . . Level 4 . | . . . . Level 5 . | . . . . High Security . | . . . . Max Security . | . . . . Peak Influence 196 | . 196 114 . Initial 68 | . . 68 . Average 65 | . 78 66 . Influence Increases 463 | . 287 156 20 Destroy 0b10 Robot/C 340 | . 220 100 20 Destroy 0b10 Robot/NC 5 | . 5 . . Destroy Leader 72 | . 52 20 . Allied During Kill 7 | . . 7 . Destroy Structure 39 | . 10 29 . Influence Decreases 463 | . 111 298 54 Entered New Map 126 | . . 108 18 Time Decay 297 | . 91 170 36 Lost Part 20 | . 20 . . Lost Ally 20 | . . 20 . Squads Dispatched 3 | . 3 . . Investigation 1 | . 1 . . Extermination . | . . . . Reinforcement 2 | . 2 . . Assault . | . . . . Garrison . | . . . . Intercept . | . . . . Searches Triggered . | . . . . Construction Impeded . | . . . . Haulers Reinforced . | . . . . Active Scanning Responses . | . . . . Cargo Convoy Interrupts . | . . . . Stealth | -11 -10 -10 -10 --------- Run | Yrd Mat Min Sub Distress Signals 1 | . 1 . . Communications Jammed . | . . . . Distress Signals . | . . . . Times Spotted 27 | . 15 5 7 Peak Tracking Total 3 | . 3 3 2 Tactical Retreats . | . . . . Traps | -11 -10 -10 -10 ------- Run | Yrd Mat Min Sub Traps Triggered 2 | . 1 . 1 Indirectly . | . . . . Trap Hack Attempts . | . . . . Triggered . | . . . . Disarmed . | . . . . Reprogrammed . | . . . . Reused . | . . . . Traps Extracted . | . . . . Installed . | . . . . Triggered . | . . . . Machines | -11 -10 -10 -10 ---------- Run | Yrd Mat Min Sub Machines Disabled . | . . . . Max in Single Turn . | . . . . Machines Repaired . | . . . . Machines Dismantled . | . . . . Machines Sabotaged . | . . . . Overloaded Fab Kills . | . . . . Hacking | -11 -10 -10 -10 --------- Run | Yrd Mat Min Sub Machines Accessed 2 | . 1 1 . Terminals 1 | . 1 . . Fabricators . | . . . . Repair Stations . | . . . . Recycling Units . | . . . . Scanalyzers . | . . . . Garrison Access . | . . . . Total Hacks 4 | . 3 1 . Successful 1 | . . 1 . Failed 3 | . 3 . . Catastrophic . | . . . . Database Lockouts . | . . . . Manual . | . . . . Terminals 3 | . 3 . . Fabricators . | . . . . Repair Stations . | . . . . Recycling Units . | . . . . Scanalyzers . | . . . . Garrison Access . | . . . . Terminal Hacks 1 | . . 1 . Open Door 1 | . . 1 . Fabricator Hacks . | . . . . Repair Station Hacks . | . . . . Recycling Unit Hacks . | . . . . Scanalyzer . | . . . . Garrison Access Hacks . | . . . . Unauthorized Hacks . | . . . . Terminals . | . . . . Fabricators . | . . . . Repair Stations . | . . . . Recycling Units . | . . . . Scanalyzers . | . . . . Garrison Access . | . . . . Data Cores Recovered . | . . . . Used . | . . . . Hacking Detections 1 | . 1 . . Full Trace Events . | . . . . Feedback Events . | . . . . Feedback Blocked . | . . . . Robot Schematics Acquired . | . . . . Robots Built . | . . . . Authchips . | . . . . Time . | . . . . Total Robot Build Rating . | . . . . Part Schematics Acquired . | . . . . Parts Built . | . . . . Authchips . | . . . . Time . | . . . . Total Part Build Rating . | . . . . Parts Repaired . | . . . . Time . | . . . . Parts Recycled . | . . . . Recycled Matter . | . . . . Retrieved Matter . | . . . . Retrieved Components . | . . . . Parts Scanalyzed . | . . . . Part Schematics Acquired . | . . . . Parts Damaged . | . . . . Bothacking | -11 -10 -10 -10 ------------ Run | Yrd Mat Min Sub Used RIF Installer . | . . . . Robots Hacked . | . . . . Non-combat . | . . . . Combat . | . . . . Robot Hacks Applied . | . . . . Relay Couplers Released . | . . . . Fabnet Peak Effective % . | . . . . Robots Rewired . | . . . . Allies Hacked . | . . . . Hacks Repelled . | . . . . Allies | -11 -10 -10 -10 -------- Run | Yrd Mat Min Sub Total Allies 2 | . . 2 . Largest Group 2 | . . 2 . Highest-Rated Group 53 | . . 53 . Highest-Rated Ally 31 | . . 31 . Total Orders . | . . . . Ally Attacks 9 | . . 9 . Total Damage 106 | . . 106 . Kills 2 | . . 2 . Allies Corrupted . | . . . . Allies Melted . | . . . . Intel | -11 -10 -10 -10 ------- Run | Yrd Mat Min Sub Active Infowar (turns) . | . . . . Robot Analysis Total . | . . . . Derelict Logs Recovered 2 | . . 1 1 Drone Launches . | . . . . Drone Recoveries . | . . . . Exploration | -11 -10 -10 -10 ------------- Run | Yrd Mat Min Sub Turns Passed 1652 | 47 231 350 1024 Spaces Moved 1318 | 42 98 312 866 Core 22 | 13 . . 9 Treads . | . . . . Legs . | . . . . Wheels 1296 | 29 98 312 857 Hover . | . . . . Flight . | . . . . Fastest Speed 50 | 50 100 100 80 Average Speed 100 | 84 100 100 101 Slowest Speed 300 | 100 100 100 300 Overloaded Moves . | . . . . Propulsion Burnouts . | . . . . Robots Hopped . | . . . . Potential Cave-ins . | . . . . Cave-ins Triggered 2 | . . . 2 Exploration Rate (%) 35 | 3 24 68 46 Regions Visited 3 Branch Regions 2 Pre-discovered Areas 1 | . . 1 . Known Exits Taken . | . . . . Unknown Exits Taken 3 | 1 1 1 . Scrap Searched 2 | . . 1 1 Spaces Dug 10 | . . . 10 Terrain Destroyed 152 | . 9 32 111 Melee . | . . . . Projectile . | . . . . AOE 152 | . 9 32 111 Terrain Rammed . | . . . . Walls Destroyed . | . . . . Machines Disabled . | . . . . Actions | -11 -10 -10 -10 --------- Run | Yrd Mat Min Sub Total 1539 | 53 176 349 961 Wait 78 | . 34 21 23 Move 1315 | 41 97 311 866 Hop . | . . . . Pick Up 30 | 7 7 7 9 Fast Attach 3 | . . . 3 Attach 21 | 5 6 1 9 Detach 6 | . 2 1 3 Swap 6 | . 2 2 2 Drop 15 | . . 4 11 Fire 61 | . 28 2 31 Melee . | . . . . Ram . | . . . . Kick . | . . . . Crush . | . . . . Escape Stasis . | . . . . Rewire 3 | . . . 3 Trap . | . . . . Miscellaneous 1 | . . . 1 Route ------- -11/Scrapyard -10/Materials (discovered 2 exits: [*Mat] / *Min) -10/Mines -10/Subcaves (discovered 1 exit: [*Scr]) History --------- Turn | Location | Event 27 | -11/Scrapyard | Discovered new exit (range 15) 48 | -11/Scrapyard | Entered Materials 230 | -10/Materials | Core integrity fell below 50% 234 | -10/Materials | Discovered new exit (range 5) 261 | -10/Materials | Discovered new exit (range 15) 279 | -10/Materials | Entered Mines 295 | -10/Mines | Learned Materials trap positions 306 | -10/Mines | Build established: Mutant 482 | -10/Mines | Found the Drone Emporium 492 | -10/Mines | Found Prototype Device 568 | -10/Mines | Learned location of Storage (-7) 621 | -10/Mines | Discovered new exit (range 9) 629 | -10/Mines | Entered Subcaves 630 | -10/Subcaves | Shifting Twisted Machinery released Shrapnel Trap 630 | -10/Subcaves | Approached by a straggling Scientist 631 | -10/Subcaves | Shifting Twisted Machinery released Sub. Power Source 680 | -10/Subcaves | Shifting Twisted Machinery released Battle Rifle 697 | -10/Subcaves | Shifting Twisted Machinery released Scrap Shield 775 | -10/Subcaves | Scientist uncovered a shortcut to Scraptown 992 | -10/Subcaves | Shifting Twisted Machinery released Battle Rifle 1109 | -10/Subcaves | Shifting Twisted Machinery released Mak. Kinetic Plating 1187 | -10/Subcaves | Ambushed by Subdwellers from Twisted Machinery 1304 | -10/Subcaves | Crushed by falling debris 1304 | -10/Subcaves | System corruption reached 10% 1305 | -10/Subcaves | Core integrity fell below 20% 1335 | -10/Subcaves | Lost 3 parts (1n1u1w) 1654 | -10/Subcaves | Crushed by falling debris 1654 | -10/Subcaves | Smashed by cave-in Last Messages --------------- Acquired 30 matter. Dropped Scrap Shield Fragment. Scrap Shield Fragment affixed to Scrap Shield (+45). Acquired 4 matter. System corrupted: Heat flow error (+177). System corrupted: Energy discharge (-76). Acquired 15 matter. Searching scrap... Found Sub. Machine Gun. Found Sub. Laser. Found 41 Matter. Acquired 19 matter. Acquired Sub. Machine Gun. The unstable cave ceiling collapses. Crushed by falling debris. Wheel destroyed. System corrupted by crushing effect (+3). Battle Rifle destroyed. System corrupted by crushing effect (+5). Map ----- +----------------------------------------------------+ | #?## #?##% # ##???? | | #?#### ### #???? | | #???## ## #### | | ## #???# ####??### ### | | # ?# ### # ##???????#######???? # | | # ?## "# ### ##?????????????????????? | | ## ???# "## #?###???????????????????????? | | ?###???? ####" #???????????????????????????? | | ???????? ##??# ##??????????????????????????? | | ???????? #???## #??????????????????????????? | | ???????? #????# ##??????????????????????????? | | ???????? #????# ######?????????????????????? | | ?????????## #????# ## ##????????????????????? | | ?????? ???? ##????# #????????????????????? | | ?????" #?????????## #????????????????????? | | ?????" #????????## """" #????????????????????? | | ????" #????????# """"#"" #????????????????????? | | ?" "" #????????# """ " #????????????????????? | | ??""" ???###??# " " #????????????????????? | | ??#""""#??## ##?###### #????????????????????? | | ??#""" #??# ##???# " " ##???????????????????? | | ??#" ""#?## #???# " #???????????????????? | | ??# ### ##### #! ##??????????????????? | | ??# ## * ???????????????????? | | ??#"" ""## # #????????????????????? | | ??##""""" ! "###### # @ #?????????????????????? | | ???##" &==##????## h ##?????????????????????? | | ???## ## !##?????## ##?????????????????????? | | ???# #####??????# #?????????????????????? | | ???# #???????## ##?????????????????????? | | #??## ##???????# ##??????????????????????? | | #???# ##???????# ##??????????????????????? | | ###### #???????# ##?????????????????????? | | ## # ##???????# #?????????????????????? | | #???????# ##?????????????????????? | | ## ##???????# ##??????????????????????? | | ## ###????????# ## ##???????????????????????? | | # #??????????##?# #####????????????????????? | | # " ####????????### #[%#????????????????????? | | #??????### ###????????????????????? | | " " # ##?????## ###??###?????????????????? | | " #####?????# ##?? ##????????????????? | | " ### ####?# ## ### #????????????????? | | ### #?# ### ##????????????????? | | #### # #?# ## ##???????????????? | | "######## ####? ## #???????????????? | | !"#?????# #??? ?# ##???????????????? | | """" ?## #??# ??####% ###????????????????? | | ""?# ##### #?????# ###??????????????????? | | ### #??# ##???## % ##???????????????????? | +----------------------------------------------------+ Best States ------------- Heat Dissipation 25 Energy Generation 18 Energy Capacity 250 Matter Stores 300 Matter Capacity 300 Sight Range 16 Terrain Scan Density 10 Armor Coverage 800 Evasion (%) 50 Targeting Accuracy 5 Item Schematics ----------------- None Robot Schematics ------------------ None Fabricated ------------ Nothing Repaired ---------- Nothing Alien Tech Used ----------------- None Achievements -------------- None Challenges ------------ None Game ------ Seed JunkTransdimensionalGun Manual? 0 Play Time 00:18:03 Cumulative 42.7 hours Start 2025.09.02 @ 23:34:13 End 2025.09.02 @ 23:53:05 Sessions 1 Manual Loads 0 Difficulty Rogue Special Mode None Game No. 57 Rogue 47 Adventurer 10 Explorer 0 Win Type - Total 0 Types 0/0/0/0/0/0/0/0/0/0 Lore% 16 Gallery% 27 Achievement% 32 Wizard Run 0 Options --------- Layout 1 ASCII 0 Keyboard 0 Movement Arrows Keybinds 0 Fullscreen 1 Font 24/Smallcaps Map View 50x35 Zoom Use 0% Tactical HUD 0 Map Filters NONE Filters NONE Steam 1 RUN: 869eae69-cbf8-420a-8177-7f8d985f373c